[Event "Masters Tournament (MTO)"]
[Site "Biel, Switzerland"]
[Date "2026.07.20"]
[Round "7.23"]
[White "Coban, Ege"]
[Black "Joly, Julien"]
[Result "1-0"]
[TimeControl "100+30+30sec/move"]
[WhiteTitle "-"]
[BlackTitle "-"]
[WhiteFideId "26320304"]
[BlackFideId "26082284"]
[WhiteElo "1986"]
[BlackElo "2257"]

1. e4 {[%clk 01:40:58]} {[%emt 00:00:01]} Nc6 {[%clk 01:40:05]} {[%emt
00:00:56]} 2. Nf3 {[%clk 01:40:29]} {[%emt 00:00:58]} d6 {[%clk 01:40:26]}
{[%emt 00:00:09]} 3. d4 {[%clk 01:39:04]} {[%emt 00:01:56]} Nf6 {[%clk
01:40:46]} {[%emt 00:00:10]} 4. Nc3 {[%clk 01:39:26]} {[%emt 00:00:08]} g6
{[%clk 01:41:13]} {[%emt 00:00:03]} 5. Bf4 {[%clk 01:39:17]} {[%emt 00:00:38]}
Bg7 {[%clk 01:39:05]} {[%emt 00:02:38]} 6. Qd2 {[%clk 01:37:35]} {[%emt
00:02:13]} Bg4 {[%clk 01:32:53]} {[%emt 00:06:41]} 7. O-O-O {[%clk 01:30:11]}
{[%emt 00:07:55]} Bxf3 {[%clk 01:27:51]} {[%emt 00:05:32]} 8. gxf3 {[%clk
01:30:33]} {[%emt 00:00:07]} Nd7 {[%clk 01:23:21]} {[%emt 00:04:57]} 9. Be3
{[%clk 01:26:03]} {[%emt 00:05:03]} Nb6 {[%clk 01:01:16]} {[%emt 00:22:35]} 10.
h4 {[%clk 01:19:13]} {[%emt 00:07:20]} e6 {[%clk 00:57:09]} {[%emt 00:04:38]}
11. f4 {[%clk 01:07:28]} {[%emt 00:12:15]} Na5 {[%clk 00:54:31]} {[%emt
00:03:06]} 12. b3 {[%clk 00:55:37]} {[%emt 00:12:23]} Nc6 {[%clk 00:48:39]}
{[%emt 00:06:21]} 13. h5 {[%clk 00:53:04]} {[%emt 00:03:03]} d5 {[%clk
00:48:15]} {[%emt 00:00:54]} 14. f5 {[%clk 00:51:57]} {[%emt 00:01:36]} dxe4
{[%clk 00:38:20]} {[%emt 00:10:26]} 15. fxe6 {[%clk 00:51:10]} {[%emt
00:01:17]} f5 {[%clk 00:35:13]} {[%emt 00:03:37]} 16. d5 {[%clk 00:50:35]}
{[%emt 00:01:06]} Ne5 {[%clk 00:34:58]} {[%emt 00:00:42]} 17. hxg6 {[%clk
00:33:12]} {[%emt 00:17:55]} Nxg6 {[%clk 00:21:46]} {[%emt 00:13:42]} 18. Bb5+
{[%clk 00:32:44]} {[%emt 00:00:58]} Kf8 {[%clk 00:21:20]} {[%emt 00:00:56]} 19.
Bc5+ {[%clk 00:22:26]} {[%emt 00:10:48]} Kg8 {[%clk 00:21:49]} 20. Qe3 {[%clk
00:22:17]} {[%emt 00:00:39]} Nc8 {[%clk 00:19:54]} {[%emt 00:02:25]} 21. e7
{[%clk 00:19:04]} {[%emt 00:03:43]} Ngxe7 {[%clk 00:19:23]} {[%emt 00:01:00]}
22. d6 {[%clk 00:18:58]} {[%emt 00:00:38]} cxd6 {[%clk 00:17:09]} {[%emt
00:02:44]} 23. Qg5 {[%clk 00:17:56]} {[%emt 00:01:31]} h6 {[%clk 00:14:12]}
{[%emt 00:03:27]} 24. Qh5 {[%clk 00:13:05]} {[%emt 00:05:21]} Rh7 {[%clk
00:09:34]} {[%emt 00:05:08]} 25. Rhg1 {[%clk 00:12:38]} {[%emt 00:00:57]} Nc6
{[%clk 00:05:05]} {[%emt 00:04:59]} 26. Nd5 {[%clk 00:10:31]} {[%emt 00:02:37]}
dxc5 {[%clk 00:02:09]} {[%emt 00:03:26]} 27. Nf6+ {[%clk 00:10:52]} {[%emt
00:00:09]} Qxf6 {[%clk 00:01:50]} {[%emt 00:00:49]} 28. Qe8+ {[%clk 00:11:19]}
{[%emt 00:00:03]} Qf8 {[%clk 00:02:04]} {[%emt 00:00:17]} 29. Bc4+ {[%clk
00:11:46]} {[%emt 00:00:02]} 1-0

[Event "Masters Tournament (MTO)"]
[Site "Biel, Switzerland"]
[Date "2026.07.20"]
[Round "7.24"]
[White "Berezovskii, Arina"]
[Black "Dauth, Benjamin"]
[Result "0-1"]
[TimeControl "100+30+30sec/move"]
[WhiteTitle "-"]
[BlackTitle "-"]
[WhiteFideId "34449850"]
[BlackFideId "4688104"]
[WhiteElo "1906"]
[BlackElo "2247"]

1. e4 {[%clk 01:40:59]} {[%emt 01:20:32]} e5 {[%clk 01:40:52]} {[%emt
00:00:08]} 2. Nf3 {[%clk 01:41:23]} {[%emt 00:00:07]} Nc6 {[%clk 01:41:19]}
{[%emt 00:00:02]} 3. Bb5 {[%clk 01:41:47]} {[%emt 00:00:06]} a6 {[%clk
01:41:44]} {[%emt 00:00:04]} 4. Bxc6 {[%clk 01:42:13]} {[%emt 00:00:05]} dxc6
{[%clk 01:42:05]} {[%emt 00:00:09]} 5. O-O {[%clk 01:42:36]} {[%emt 00:00:06]}
Bg4 {[%clk 01:42:01]} {[%emt 00:00:35]} 6. h3 {[%clk 01:42:55]} {[%emt
00:00:11]} Bxf3 {[%clk 01:41:22]} {[%emt 00:01:09]} 7. Qxf3 {[%clk 01:43:04]}
{[%emt 00:00:21]} Qf6 {[%clk 01:41:48]} {[%emt 00:00:04]} 8. Qxf6 {[%clk
01:38:00]} {[%emt 00:05:34]} Nxf6 {[%clk 01:42:02]} {[%emt 00:00:16]} 9. d3
{[%clk 01:34:09]} {[%emt 00:04:21]} Bc5 {[%clk 01:39:05]} {[%emt 00:03:27]} 10.
Nd2 {[%clk 01:28:54]} {[%emt 00:05:45]} Nd7 {[%clk 01:39:21]} {[%emt 00:00:14]}
11. Nf3 {[%clk 01:23:27]} {[%emt 00:05:58]} f6 {[%clk 01:37:45]} {[%emt
00:02:05]} 12. Bd2 {[%clk 01:15:16]} {[%emt 00:08:41]} O-O-O {[%clk 01:38:00]}
{[%emt 00:00:15]} 13. Rfb1 {[%clk 01:13:34]} {[%emt 00:02:12]} Nf8 {[%clk
01:36:16]} {[%emt 00:02:14]} 14. b4 {[%clk 01:10:41]} {[%emt 00:03:24]} Be7
{[%clk 01:36:40]} {[%emt 00:00:05]} 15. a4 {[%clk 01:09:27]} {[%emt 00:01:45]}
Ne6 {[%clk 01:36:48]} {[%emt 00:00:21]} 16. Kf1 {[%clk 00:54:50]} {[%emt
00:15:06]} g5 {[%clk 01:36:44]} {[%emt 00:00:34]} 17. b5 {[%clk 00:52:33]}
{[%emt 00:02:48]} cxb5 {[%clk 01:34:57]} {[%emt 00:02:17]} 18. axb5 {[%clk
00:52:53]} {[%emt 00:00:10]} axb5 {[%clk 01:35:21]} {[%emt 00:00:06]} 19. Rxb5
{[%clk 00:50:53]} {[%emt 00:02:30]} b6 {[%clk 01:35:20]} {[%emt 00:00:32]} 20.
Rb2 {[%clk 00:46:12]} {[%emt 00:05:10]} h5 {[%clk 01:35:22]} {[%emt 00:00:27]}
21. Rba2 {[%clk 00:45:20]} {[%emt 00:01:23]} Bc5 {[%clk 01:29:00]} {[%emt
00:06:52]} 22. h4 {[%clk 00:37:01]} {[%emt 00:08:49]} g4 {[%clk 01:29:00]}
{[%emt 00:00:30]} 23. Ng1 {[%clk 00:36:19]} {[%emt 00:01:12]} Kd7 {[%clk
01:25:00]} {[%emt 00:04:30]} 24. Ne2 {[%clk 00:32:44]} {[%emt 00:04:04]} Rb8
{[%clk 01:25:11]} {[%emt 00:00:19]} 25. Ng3 {[%clk 00:30:53]} {[%emt 00:02:22]}
Rbf8 {[%clk 01:25:01]} {[%emt 00:00:40]} 26. Nf5 {[%clk 00:28:34]} {[%emt
00:02:49]} Nd4 {[%clk 01:25:00]} {[%emt 00:00:30]} 27. Bh6 {[%clk 00:23:32]}
{[%emt 00:05:32]} Rf7 {[%clk 01:21:53]} {[%emt 00:03:37]} 28. Be3 {[%clk
00:19:56]} {[%emt 00:04:05]} Nxf5 {[%clk 01:20:44]} {[%emt 00:01:40]} 29. exf5
{[%clk 00:20:15]} {[%emt 00:00:11]} Bd6 {[%clk 01:09:33]} {[%emt 00:11:41]} 30.
Bxb6 {[%clk 00:17:45]} {[%emt 00:03:00]} e4 {[%clk 01:07:25]} {[%emt 00:02:39]}
31. Ra7 {[%clk 00:15:05]} {[%emt 00:03:10]} Rb8 {[%clk 01:04:11]} {[%emt
00:03:43]} 32. Be3 {[%clk 00:13:38]} {[%emt 00:01:58]} exd3 {[%clk 01:04:27]}
{[%emt 00:00:15]} 33. cxd3 {[%clk 00:14:01]} {[%emt 00:00:06]} Rb3 {[%clk
01:04:17]} {[%emt 00:00:39]} 34. Rd1 {[%clk 00:11:23]} {[%emt 00:03:09]} Rb5
{[%clk 01:03:57]} {[%emt 00:00:50]} 35. g3 {[%clk 00:06:56]} {[%emt 00:04:56]}
Rxf5 {[%clk 01:04:19]} {[%emt 00:00:08]} 36. Kg2 {[%clk 00:07:18]} {[%emt
00:00:08]} Re7 {[%clk 01:03:51]} {[%emt 00:00:59]} 37. Ra8 {[%clk 00:06:07]}
{[%emt 00:01:41]} Rf3 {[%clk 01:02:48]} {[%emt 00:01:33]} 38. Bd4 {[%clk
00:03:12]} {[%emt 00:03:25]} Re2 {[%clk 01:02:32]} {[%emt 00:00:46]} 39. Kg1
{[%clk 00:01:58]} {[%emt 00:01:44]} c5 {[%clk 01:01:56]} {[%emt 00:01:05]} 40.
Be3 {[%clk 00:00:41]} {[%emt 00:01:47]} Bxg3 {[%clk 01:00:28]} {[%emt
00:01:58]} 41. Bxc5 {[%clk 00:16:03]} {[%emt 00:15:09]} Bxf2+ {[%clk 01:28:02]}
{[%emt 00:02:56]} 42. Bxf2 {[%clk 00:16:26]} {[%emt 00:00:06]} Rfxf2 {[%clk
01:28:24]} {[%emt 00:00:08]} 43. Ra5 {[%clk 00:14:36]} {[%emt 00:02:20]} f5
{[%clk 01:26:57]} {[%emt 00:01:57]} 44. Rc1 {[%clk 00:12:40]} {[%emt 00:02:26]}
g3 {[%clk 01:21:21]} {[%emt 00:06:07]} 45. Ra7+ {[%clk 00:09:55]} {[%emt
00:03:14]} Kd6 {[%clk 01:21:41]} {[%emt 00:00:10]} 46. Rca1 {[%clk 00:06:51]}
{[%emt 00:03:35]} f4 {[%clk 01:13:29]} {[%emt 00:08:41]} 47. R7a6+ {[%clk
00:05:15]} {[%emt 00:02:06]} Kd5 {[%clk 01:13:23]} {[%emt 00:00:35]} 48. R6a5+
{[%clk 00:03:45]} {[%emt 00:02:01]} Kd4 {[%clk 01:13:17]} {[%emt 00:00:36]} 49.
R5a4+ {[%clk 00:02:39]} {[%emt 00:01:37]} Ke3 {[%clk 01:13:16]} {[%emt
00:00:31]} 50. d4 {[%clk 00:02:09]} {[%emt 00:01:00]} Kf3 {[%clk 01:12:48]}
{[%emt 00:00:57]} 51. R4a3+ {[%clk 00:02:01]} {[%emt 00:00:39]} Kg4 {[%clk
01:13:07]} {[%emt 00:00:10]} 52. d5 {[%clk 00:01:21]} {[%emt 00:01:11]} Kh3
{[%clk 01:13:12]} {[%emt 00:00:24]} 53. d6 {[%clk 00:00:47]} {[%emt 00:01:05]}
Rg2+ {[%clk 01:13:35]} {[%emt 00:00:07]} 54. Kh1 {[%clk 00:01:12]} {[%emt
00:00:04]} Rh2+ {[%clk 01:13:59]} {[%emt 00:00:05]} 55. Kg1 {[%clk 00:01:38]}
{[%emt 00:00:04]} Reg2+ {[%clk 01:14:23]} {[%emt 00:00:06]} 0-1

[Event "Masters Tournament (MTO)"]
[Site "Biel, Switzerland"]
[Date "2026.07.20"]
[Round "7.25"]
[White "Ivana Maria, Furtado"]
[Black "Schmidt, Florian Pascal"]
[Result "1/2-1/2"]
[TimeControl "100+30+30sec/move"]
[WhiteTitle "-"]
[BlackTitle "-"]
[WhiteFideId "5048400"]
[BlackFideId "16256840"]
[WhiteElo "2182"]
[BlackElo "2095"]

1. d4 {[%clk 01:40:35]} {[%emt 00:00:24]} Nf6 {[%clk 01:40:48]} {[%emt
00:00:12]} 2. Nf3 {[%clk 01:40:59]} {[%emt 00:00:08]} d5 {[%clk 01:41:00]}
{[%emt 00:00:16]} 3. g3 {[%clk 01:40:56]} {[%emt 00:00:33]} Bg4 {[%clk
01:38:35]} {[%emt 00:02:55]} 4. Bg2 {[%clk 01:40:31]} {[%emt 00:00:55]} e6
{[%clk 01:38:24]} {[%emt 00:00:41]} 5. Ne5 {[%clk 01:38:59]} {[%emt 00:02:03]}
Bf5 {[%clk 01:37:53]} {[%emt 00:01:00]} 6. O-O {[%clk 01:38:44]} {[%emt
00:00:46]} Bd6 {[%clk 01:36:15]} {[%emt 00:02:07]} 7. c4 {[%clk 01:37:31]}
{[%emt 00:01:43]} c6 {[%clk 01:36:19]} {[%emt 00:00:26]} 8. Nc3 {[%clk
01:36:01]} {[%emt 00:02:00]} O-O {[%clk 01:35:26]} {[%emt 00:01:23]} 9. f3
{[%clk 01:31:53]} {[%emt 00:04:39]} Bg6 {[%clk 01:13:38]} {[%emt 00:22:16]} 10.
Nxg6 {[%clk 01:28:52]} {[%emt 00:03:32]} hxg6 {[%clk 01:13:58]} {[%emt
00:00:10]} 11. e4 {[%clk 01:28:15]} {[%emt 00:01:07]} dxe4 {[%clk 01:11:41]}
{[%emt 00:02:47]} 12. fxe4 {[%clk 01:28:19]} {[%emt 00:00:26]} e5 {[%clk
01:11:55]} {[%emt 00:00:16]} 13. d5 {[%clk 01:25:12]} {[%emt 00:03:38]} Nbd7
{[%clk 01:07:43]} {[%emt 00:04:41]} 14. Be3 {[%clk 01:15:14]} {[%emt 00:10:27]}
Bc5 {[%clk 01:00:32]} {[%emt 00:07:42]} 15. Bxc5 {[%clk 01:15:00]} {[%emt
00:00:45]} Nxc5 {[%clk 01:00:58]} {[%emt 00:00:03]} 16. b4 {[%clk 01:15:21]}
{[%emt 00:00:10]} Na6 {[%clk 01:01:21]} {[%emt 00:00:06]} 17. a3 {[%clk
01:03:55]} {[%emt 00:11:56]} c5 {[%clk 00:59:56]} {[%emt 00:01:55]} 18. Rb1
{[%clk 00:57:52]} {[%emt 00:06:34]} cxb4 {[%clk 00:45:11]} {[%emt 00:15:14]} 19.
axb4 {[%clk 00:57:29]} {[%emt 00:00:53]} Qb6+ {[%clk 00:45:10]} {[%emt
00:00:30]} 20. Rf2 {[%clk 00:51:56]} {[%emt 00:06:03]} Nxb4 {[%clk 00:44:27]}
{[%emt 00:01:15]} 21. Na4 {[%clk 00:48:50]} {[%emt 00:03:36]} Qa5 {[%clk
00:43:46]} {[%emt 00:01:09]} 22. Rfb2 {[%clk 00:43:25]} {[%emt 00:05:56]} Na6
{[%clk 00:42:35]} {[%emt 00:01:41]} 23. Rb5 {[%clk 00:37:49]} {[%emt 00:06:05]}
Qc7 {[%clk 00:33:34]} {[%emt 00:09:32]} 24. c5 {[%clk 00:38:05]} {[%emt
00:00:14]} Rab8 {[%clk 00:27:17]} {[%emt 00:06:46]} 25. g4 {[%clk 00:35:32]}
{[%emt 00:03:04]} Nd7 {[%clk 00:24:10]} {[%emt 00:03:36]} 26. d6 {[%clk
00:31:28]} {[%emt 00:04:34]} Qc6 {[%clk 00:23:19]} {[%emt 00:01:20]} 27. Qd5
{[%clk 00:27:53]} {[%emt 00:04:06]} Nf6 {[%clk 00:22:44]} {[%emt 00:01:05]} 28.
Qxc6 {[%clk 00:19:45]} {[%emt 00:08:39]} bxc6 {[%clk 00:23:09]} {[%emt
00:00:05]} 29. Rb7 {[%clk 00:18:10]} {[%emt 00:02:06]} Nd7 {[%clk 00:20:34]}
{[%emt 00:03:04]} 30. Bf1 {[%clk 00:13:06]} {[%emt 00:05:33]} Rxb7 {[%clk
00:20:57]} {[%emt 00:00:08]} 31. Rxb7 {[%clk 00:13:32]} {[%emt 00:00:05]} Naxc5
{[%clk 00:20:39]} {[%emt 00:00:47]} 32. Rxa7 {[%clk 00:10:08]} {[%emt
00:03:53]} Rd8 {[%clk 00:19:09]} {[%emt 00:02:00]} 33. Nc3 {[%clk 00:06:29]}
{[%emt 00:04:10]} Nf6 {[%clk 00:16:45]} {[%emt 00:02:54]} 34. Bc4 {[%clk
00:04:50]} {[%emt 00:02:09]} Rd7 {[%clk 00:16:41]} {[%emt 00:00:34]} 35. Rc7
{[%clk 00:03:58]} {[%emt 00:01:23]} Rxd6 {[%clk 00:15:40]} {[%emt 00:01:30]} 36.
Bxf7+ {[%clk 00:03:43]} {[%emt 00:00:45]} Kh7 {[%clk 00:15:46]} {[%emt
00:00:23]} 37. g5 {[%clk 00:03:26]} {[%emt 00:00:47]} Nfxe4 {[%clk 00:15:52]}
{[%emt 00:00:25]} 38. Nxe4 {[%clk 00:03:38]} {[%emt 00:00:17]} Nxe4 {[%clk
00:16:18]} {[%emt 00:00:04]} 39. h4 {[%clk 00:03:59]} {[%emt 00:00:09]} Rd8
{[%clk 00:04:03]} {[%emt 00:12:46]} 40. Rxc6 {[%clk 00:04:23]} {[%emt
00:00:06]} Nd6 {[%clk 00:04:29]} {[%emt 00:00:02]} 41. Be6 {[%clk 00:00:34]}
{[%emt 00:04:20]} Nf5 {[%clk 00:02:59]} {[%emt 00:02:01]} 42. Bf7 {[%clk
00:23:24]} {[%emt 00:07:40]} Nxh4 {[%clk 00:32:02]} {[%emt 00:01:27]} 43. Rc3
{[%clk 00:22:44]} {[%emt 00:01:10]} Rf8 {[%clk 00:29:44]} {[%emt 00:02:47]} 44.
Bd5 {[%clk 00:23:02]} {[%emt 00:00:13]} Nf5 {[%clk 00:24:52]} {[%emt 00:05:21]}
45. Rh3+ {[%clk 00:21:44]} {[%emt 00:01:48]} Nh6 {[%clk 00:25:18]} {[%emt
00:00:04]} 46. gxh6 {[%clk 00:19:09]} {[%emt 00:03:06]} gxh6 {[%clk 00:25:44]}
{[%emt 00:00:04]} 47. Ra3 {[%clk 00:17:52]} {[%emt 00:01:47]} Kg7 {[%clk
00:19:24]} {[%emt 00:06:50]} 1/2-1/2

[Event "Masters Tournament (MTO)"]
[Site "Biel, Switzerland"]
[Date "2026.07.20"]
[Round "7.26"]
[White "Erne, Raphael"]
[Black "Gerrits, Augustin"]
[Result "1-0"]
[TimeControl "100+30+30sec/move"]
[WhiteTitle "-"]
[BlackTitle "-"]
[WhiteFideId "1341928"]
[BlackFideId "285358"]
[WhiteElo "2166"]
[BlackElo "2072"]

1. d4 {[%clk 01:36:50]} {[%emt 00:04:09]} d5 {[%clk 01:40:37]} {[%emt
00:00:23]} 2. c4 {[%clk 01:37:06]} {[%emt 00:00:13]} c6 {[%clk 01:40:29]}
{[%emt 00:00:38]} 3. Nf3 {[%clk 01:37:14]} {[%emt 00:00:22]} Nf6 {[%clk
01:40:26]} {[%emt 00:00:32]} 4. Qb3 {[%clk 01:37:27]} {[%emt 00:00:19]} e6
{[%clk 01:36:36]} {[%emt 00:04:20]} 5. Bg5 {[%clk 01:37:38]} {[%emt 00:00:18]}
Be7 {[%clk 01:33:41]} {[%emt 00:03:25]} 6. Nc3 {[%clk 01:37:12]} {[%emt
00:00:56]} Nbd7 {[%clk 01:31:41]} {[%emt 00:02:30]} 7. e3 {[%clk 01:36:49]}
{[%emt 00:00:53]} b6 {[%clk 01:27:18]} {[%emt 00:04:54]} 8. Bd3 {[%clk
01:31:40]} {[%emt 00:05:38]} O-O {[%clk 01:25:21]} {[%emt 00:02:28]} 9. O-O
{[%clk 01:30:44]} {[%emt 00:01:25]} dxc4 {[%clk 01:15:26]} {[%emt 00:10:26]} 10.
Bxc4 {[%clk 01:27:14]} {[%emt 00:03:59]} Nd5 {[%clk 01:15:02]} {[%emt
00:00:55]} 11. Bxe7 {[%clk 01:26:23]} {[%emt 00:01:21]} Qxe7 {[%clk 01:15:15]}
{[%emt 00:00:16]} 12. Rfe1 {[%clk 01:13:22]} {[%emt 00:13:31]} Nxc3 {[%clk
01:10:43]} {[%emt 00:05:02]} 13. bxc3 {[%clk 01:10:55]} {[%emt 00:02:58]} Bb7
{[%clk 01:06:21]} {[%emt 00:04:52]} 14. a4 {[%clk 01:09:08]} {[%emt 00:02:15]}
c5 {[%clk 01:01:48]} {[%emt 00:05:05]} 15. e4 {[%clk 01:06:01]} {[%emt
00:03:37]} cxd4 {[%clk 00:58:40]} {[%emt 00:03:37]} 16. cxd4 {[%clk 01:05:32]}
{[%emt 00:01:00]} Nf6 {[%clk 00:58:50]} {[%emt 00:00:20]} 17. Bd3 {[%clk
00:58:25]} {[%emt 00:07:36]} Rab8 {[%clk 00:54:43]} {[%emt 00:04:38]} 18. Qc2
{[%clk 00:50:09]} {[%emt 00:08:46]} Rfc8 {[%clk 00:51:01]} {[%emt 00:04:12]} 19.
Qd2 {[%clk 00:49:38]} {[%emt 00:01:00]} Qd8 {[%clk 00:34:45]} {[%emt 00:16:47]}
20. Qf4 {[%clk 00:35:40]} {[%emt 00:14:28]} Rc3 {[%clk 00:32:16]} {[%emt
00:02:59]} 21. Red1 {[%clk 00:35:15]} {[%emt 00:00:55]} Rbc8 {[%clk 00:28:22]}
{[%emt 00:04:24]} 22. d5 {[%clk 00:30:10]} {[%emt 00:05:35]} exd5 {[%clk
00:25:18]} {[%emt 00:03:34]} 23. e5 {[%clk 00:30:19]} {[%emt 00:00:20]} Qc7
{[%clk 00:25:32]} {[%emt 00:00:17]} 24. g3 {[%clk 00:13:37]} {[%emt 00:17:12]}
Ne4 {[%clk 00:23:37]} {[%emt 00:02:25]} 25. Nd4 {[%clk 00:13:30]} {[%emt
00:00:36]} Qe7 {[%clk 00:13:37]} {[%emt 00:10:31]} 26. Nf5 {[%clk 00:10:35]}
{[%emt 00:03:25]} Qc7 {[%clk 00:11:53]} {[%emt 00:02:14]} 27. Bxe4 {[%clk
00:09:45]} {[%emt 00:01:21]} dxe4 {[%clk 00:12:16]} {[%emt 00:00:06]} 28. Qg5
{[%clk 00:09:40]} {[%emt 00:00:35]} f6 {[%clk 00:12:12]} {[%emt 00:00:33]} 29.
exf6 {[%clk 00:09:55]} {[%emt 00:00:16]} e3 {[%clk 00:12:35]} {[%emt 00:00:07]}
30. f7+ {[%clk 00:07:12]} {[%emt 00:03:14]} 1-0